[Event "Titled Tuesday Blitz February 21 Early 2023"]
[White "EREBUNI91"]
[Black "Shapiro, Viktor"]
[BlackFideId "4175700"]
[WhiteElo "2722"]
[BlackElo "2192"]
[Result "0-1"]
[Round "06"]
[TimeControl "180+2"]
[Date "2023.02.21"]
[WhiteClock "0:01:33"]
[BlackClock "0:01:21"]

1. e4 {[%clk 0:03:00]}  Nf6 {[%clk 0:03:00]} 2. e5 {[%clk 0:03:00]}  Nd5 {[%clk 0:03:00]} 3. d4 {[%clk 0:02:59]}  d6 {[%clk 0:03:00]} 4. c4 {[%clk 0:02:57]}  Nb6 {[%clk 0:03:01]} 5. exd6 {[%clk 0:02:58]}  cxd6 {[%clk 0:03:00]} 6. Nc3 {[%clk 0:02:54]}  g6 {[%clk 0:03:01]} 7. Nf3 {[%clk 0:02:51]}  Bg4 {[%clk 0:02:58]} 8. Be3 {[%clk 0:02:49]}  Bg7 {[%clk 0:02:45]} 9. Be2 {[%clk 0:02:47]}  Nc6 {[%clk 0:02:41]} 10. b3 {[%clk 0:02:45]}  O-O {[%clk 0:02:40]} 11. h3 {[%clk 0:02:43]}  Bxf3 {[%clk 0:02:39]} 12. Bxf3 {[%clk 0:02:44]}  e5 {[%clk 0:02:39]} 13. dxe5 {[%clk 0:02:43]}  dxe5 {[%clk 0:02:39]} 14. Bxc6 {[%clk 0:02:40]}  bxc6 {[%clk 0:02:39]} 15. Qxd8 {[%clk 0:02:40]}  Rfxd8 {[%clk 0:02:39]} 16. Rd1 {[%clk 0:02:36]}  f5 {[%clk 0:02:34]} 17. Ke2 {[%clk 0:02:31]}  e4 {[%clk 0:02:33]} 18. Rxd8+ {[%clk 0:02:24]}  Rxd8 {[%clk 0:02:33]} 19. Rd1 {[%clk 0:02:25]}  Rxd1 {[%clk 0:02:30]} 20. Nxd1 {[%clk 0:02:26]}  Kf7 {[%clk 0:02:30]} 21. f3 {[%clk 0:02:23]}  exf3+ {[%clk 0:02:28]} 22. Kxf3 {[%clk 0:02:24]}  Ke6 {[%clk 0:02:26]} 23. Nf2 {[%clk 0:02:18]}  Be5 {[%clk 0:01:57]} 24. Nd3 {[%clk 0:02:17]}  Bb8 {[%clk 0:01:51]} 25. a4 {[%clk 0:02:17]}  Nd7 {[%clk 0:01:47]} 26. Nb4 {[%clk 0:02:12]}  Ne5+ {[%clk 0:01:44]} 27. Ke2 {[%clk 0:02:11]}  Bd6 {[%clk 0:01:41]} 28. Na6 {[%clk 0:02:08]}  Nd7 {[%clk 0:01:35]} 29. Bxa7 {[%clk 0:02:05]}  c5 {[%clk 0:01:35]} 30. Bb8 {[%clk 0:02:05]}  Bxb8 {[%clk 0:01:24]} 31. Nxb8 {[%clk 0:01:46]}  Nxb8 {[%clk 0:01:24]} 32. a5 {[%clk 0:01:37]}  Na6 {[%clk 0:01:21]} 33. Ke3 {[%clk 0:01:35]}  Ke5 {[%clk 0:01:21]} 34. h4 {[%clk 0:01:33]}  h6 {[%clk 0:01:21]} 35. g3 {[%clk 0:01:33]}  g5 {[%clk 0:01:21]} 0-1


[Site "https://www.chess.com"]

[Event "Titled Tuesday Blitz February 21 Early 2023"]
[White "Arenas, David"]
[Black "Costachi, Mihnea"]
[WhiteFideId "4403177"]
[BlackFideId "1217518"]
[WhiteElo "2426"]
[BlackElo "2476"]
[Result "0-1"]
[Round "06"]
[TimeControl "180+2"]
[Date "2023.02.21"]
[WhiteClock "0:00:05"]
[BlackClock "0:01:12"]

1. d4 {[%clk 0:02:53]}  d5 {[%clk 0:02:59]} 2. c4 {[%clk 0:02:52]}  dxc4 {[%clk 0:02:59]} 3. e3 {[%clk 0:02:51]}  e5 {[%clk 0:02:55]} 4. Bxc4 {[%clk 0:02:51]}  exd4 {[%clk 0:02:56]} 5. exd4 {[%clk 0:02:52]}  Nf6 {[%clk 0:02:56]} 6. Nf3 {[%clk 0:02:51]}  Be7 {[%clk 0:02:56]} 7. h3 {[%clk 0:02:50]}  O-O {[%clk 0:02:55]} 8. O-O {[%clk 0:02:51]}  Nbd7 {[%clk 0:02:55]} 9. Nc3 {[%clk 0:02:48]}  Nb6 {[%clk 0:02:56]} 10. Bd3 {[%clk 0:02:46]}  Nbd5 {[%clk 0:02:56]} 11. Re1 {[%clk 0:02:44]}  h6 {[%clk 0:02:56]} 12. Bd2 {[%clk 0:02:32]}  b6 {[%clk 0:02:47]} 13. Rc1 {[%clk 0:02:28]}  Bb7 {[%clk 0:02:48]} 14. Bb1 {[%clk 0:02:26]}  Re8 {[%clk 0:02:46]} 15. Ne5 {[%clk 0:02:22]}  c5 {[%clk 0:02:39]} 16. dxc5 {[%clk 0:02:18]}  Bxc5 {[%clk 0:02:40]} 17. Nd3 {[%clk 0:01:39]}  Rxe1+ {[%clk 0:02:26]} 18. Qxe1 {[%clk 0:01:32]}  Nxc3 {[%clk 0:02:19]} 19. Bxc3 {[%clk 0:01:31]}  Qd5 {[%clk 0:02:19]} 20. Qf1 {[%clk 0:01:28]}  Bd4 {[%clk 0:02:12]} 21. Nf4 {[%clk 0:01:18]}  Qe5 {[%clk 0:02:11]} 22. Bxd4 {[%clk 0:01:18]}  Qxd4 {[%clk 0:02:12]} 23. Qc4 {[%clk 0:01:17]}  Qxb2 {[%clk 0:01:59]} 24. Nd3 {[%clk 0:01:08]}  Qd2 {[%clk 0:01:50]} 25. Qc7 {[%clk 0:01:06]}  Bd5 {[%clk 0:01:43]} 26. Ne5 {[%clk 0:01:00]}  Re8 {[%clk 0:01:43]} 27. Bf5 {[%clk 0:00:20]}  Qg5 {[%clk 0:01:41]} 28. g4 {[%clk 0:00:19]}  Qf4 {[%clk 0:01:31]} 29. Re1 {[%clk 0:00:17]}  g6 {[%clk 0:01:19]} 30. Bd7 {[%clk 0:00:10]}  Nxd7 {[%clk 0:01:13]} 31. Nxd7 {[%clk 0:00:05]}  Rxe1# {[%clk 0:01:12]} 0-1


[Site "https://www.chess.com"]

[Event "Titled Tuesday Blitz February 21 Early 2023"]
[White "Korchmar, Vasiliy"]
[Black "Alinasab, Mobina"]
[WhiteFideId "24131750"]
[BlackFideId "12528897"]
[WhiteElo "2438"]
[BlackElo "2347"]
[Result "1-0"]
[Round "06"]
[TimeControl "180+2"]
[Date "2023.02.21"]
[WhiteClock "0:00:55"]
[BlackClock "0:00:07"]

1. e4 {[%clk 0:03:00]}  c5 {[%clk 0:02:53]} 2. Nf3 {[%clk 0:03:00]}  e6 {[%clk 0:02:53]} 3. g3 {[%clk 0:03:00]}  d5 {[%clk 0:02:47]} 4. exd5 {[%clk 0:02:59]}  Qxd5 {[%clk 0:02:48]} 5. Bg2 {[%clk 0:02:59]}  Nc6 {[%clk 0:02:46]} 6. O-O {[%clk 0:02:59]}  Nf6 {[%clk 0:02:44]} 7. Nc3 {[%clk 0:02:57]}  Qd8 {[%clk 0:02:43]} 8. d4 {[%clk 0:02:55]}  cxd4 {[%clk 0:02:42]} 9. Nb5 {[%clk 0:02:55]}  Bc5 {[%clk 0:02:36]} 10. Bf4 {[%clk 0:02:52]}  Nd5 {[%clk 0:02:29]} 11. Ne5 {[%clk 0:02:26]}  Nxf4 {[%clk 0:02:05]} 12. Nxc6 {[%clk 0:02:24]}  bxc6 {[%clk 0:02:05]} 13. gxf4 {[%clk 0:02:00]}  Qb6 {[%clk 0:02:00]} 14. b4 {[%clk 0:01:51]}  Qxb5 {[%clk 0:01:47]} 15. a4 {[%clk 0:01:42]}  Qb6 {[%clk 0:01:10]} 16. a5 {[%clk 0:01:42]}  Qb5 {[%clk 0:01:09]} 17. bxc5 {[%clk 0:01:35]}  Qxc5 {[%clk 0:01:10]} 18. Ra4 {[%clk 0:01:30]}  O-O {[%clk 0:01:06]} 19. Qxd4 {[%clk 0:01:26]}  Qxd4 {[%clk 0:00:52]} 20. Rxd4 {[%clk 0:01:26]}  Ba6 {[%clk 0:00:51]} 21. Rfd1 {[%clk 0:01:25]}  Bb5 {[%clk 0:00:46]} 22. c4 {[%clk 0:01:22]}  Ba6 {[%clk 0:00:24]} 23. Bxc6 {[%clk 0:01:17]}  Rac8 {[%clk 0:00:20]} 24. Bb5 {[%clk 0:01:16]}  Bxb5 {[%clk 0:00:17]} 25. cxb5 {[%clk 0:01:17]}  Rc5 {[%clk 0:00:15]} 26. Rb1 {[%clk 0:01:18]}  Rb8 {[%clk 0:00:12]} 27. b6 {[%clk 0:01:01]}  Rxa5 {[%clk 0:00:11]} 28. b7 {[%clk 0:00:56]}  Rc5 {[%clk 0:00:07]} 29. Rd8+ {[%clk 0:00:55]} 1-0


[Site "https://www.chess.com"]

[Event "Titled Tuesday Blitz February 21 Early 2023"]
[White "Csonka, Balazs"]
[Black "Reprintsev, Alexander"]
[WhiteFideId "742910"]
[BlackFideId "14100541"]
[WhiteElo "2496"]
[BlackElo "2253"]
[Result "1-0"]
[Round "06"]
[TimeControl "180+2"]
[Date "2023.02.21"]
[WhiteClock "0:00:11"]
[BlackClock "0:01:15"]

1. d4 {[%clk 0:03:00]}  d5 {[%clk 0:02:59]} 2. c4 {[%clk 0:02:59]}  e5 {[%clk 0:02:59]} 3. e3 {[%clk 0:02:53]}  exd4 {[%clk 0:02:59]} 4. exd4 {[%clk 0:02:53]}  Nf6 {[%clk 0:02:59]} 5. Nc3 {[%clk 0:02:52]}  Nc6 {[%clk 0:02:57]} 6. Nf3 {[%clk 0:02:31]}  Bg4 {[%clk 0:02:57]} 7. cxd5 {[%clk 0:02:20]}  Nxd5 {[%clk 0:02:55]} 8. Bc4 {[%clk 0:02:18]}  Bb4 {[%clk 0:02:48]} 9. O-O {[%clk 0:02:14]}  Nxc3 {[%clk 0:02:44]} 10. bxc3 {[%clk 0:02:15]}  Bxc3 {[%clk 0:02:44]} 11. Bxf7+ {[%clk 0:02:09]}  Kxf7 {[%clk 0:02:29]} 12. Qb3+ {[%clk 0:02:09]}  Kg6 {[%clk 0:02:23]} 13. Qxc3 {[%clk 0:01:55]}  Bxf3 {[%clk 0:02:21]} 14. Qd3+ {[%clk 0:01:46]}  Kf7 {[%clk 0:02:19]} 15. Qxf3+ {[%clk 0:01:44]}  Qf6 {[%clk 0:02:19]} 16. Qb3+ {[%clk 0:01:43]}  Kg6 {[%clk 0:02:18]} 17. Bb2 {[%clk 0:01:29]}  Qd6 {[%clk 0:02:05]} 18. d5 {[%clk 0:01:23]}  Ne7 {[%clk 0:02:01]} 19. Rfe1 {[%clk 0:01:15]}  Nxd5 {[%clk 0:01:54]} 20. Be5 {[%clk 0:01:11]}  Qd7 {[%clk 0:01:46]} 21. Qg3+ {[%clk 0:01:01]}  Kh6 {[%clk 0:01:46]} 22. Re4 {[%clk 0:00:36]}  g5 {[%clk 0:01:40]} 23. Bxh8 {[%clk 0:00:34]}  Rxh8 {[%clk 0:01:40]} 24. Re5 {[%clk 0:00:33]}  Rg8 {[%clk 0:01:35]} 25. h4 {[%clk 0:00:30]}  g4 {[%clk 0:01:28]} 26. Rd1 {[%clk 0:00:22]}  c6 {[%clk 0:01:28]} 27. Rdxd5 {[%clk 0:00:20]}  cxd5 {[%clk 0:01:28]} 28. Qf4+ {[%clk 0:00:20]}  Kg7 {[%clk 0:01:19]} 29. Rg5+ {[%clk 0:00:17]}  Kh8 {[%clk 0:01:18]} 30. Qf6+ {[%clk 0:00:12]}  Qg7 {[%clk 0:01:14]} 31. Rxg7 {[%clk 0:00:11]}  Rxg7 {[%clk 0:01:15]} 32. Qd8+ {[%clk 0:00:11]} 1-0


[Site "https://www.chess.com"]

[Event "Titled Tuesday Blitz February 21 Early 2023"]
[White "Ramirez Allo, Eduardo"]
[Black "Kononenko, Dmitry"]
[WhiteFideId "2224178"]
[BlackFideId "14113538"]
[WhiteElo "2274"]
[BlackElo "2256"]
[Result "1-0"]
[Round "06"]
[TimeControl "180+2"]
[Date "2023.02.21"]
[WhiteClock "0:00:13"]
[BlackClock "0:00:18"]

1. Nf3 {[%clk 0:03:00]}  c5 {[%clk 0:02:59]} 2. g3 {[%clk 0:03:00]}  Nc6 {[%clk 0:02:59]} 3. d4 {[%clk 0:03:00]}  cxd4 {[%clk 0:02:59]} 4. Nxd4 {[%clk 0:03:01]}  g6 {[%clk 0:02:59]} 5. c4 {[%clk 0:03:01]}  Bg7 {[%clk 0:02:59]} 6. Nc2 {[%clk 0:03:01]}  d6 {[%clk 0:02:56]} 7. Bg2 {[%clk 0:02:55]}  Nf6 {[%clk 0:02:56]} 8. O-O {[%clk 0:02:55]}  Be6 {[%clk 0:02:54]} 9. Ne3 {[%clk 0:02:54]}  Qd7 {[%clk 0:02:54]} 10. Re1 {[%clk 0:02:48]}  Bh3 {[%clk 0:02:48]} 11. Bh1 {[%clk 0:02:49]}  h5 {[%clk 0:02:48]} 12. Nc3 {[%clk 0:02:47]}  h4 {[%clk 0:02:48]} 13. Ncd5 {[%clk 0:02:30]}  hxg3 {[%clk 0:02:46]} 14. hxg3 {[%clk 0:02:25]}  O-O-O {[%clk 0:02:39]} 15. Qa4 {[%clk 0:02:22]}  Kb8 {[%clk 0:02:36]} 16. Nxf6 {[%clk 0:02:15]}  Bxf6 {[%clk 0:02:35]} 17. Nd5 {[%clk 0:02:15]}  Bd4 {[%clk 0:02:30]} 18. Be3 {[%clk 0:02:12]}  Bxe3 {[%clk 0:02:21]} 19. Nxe3 {[%clk 0:02:13]}  Nd4 {[%clk 0:02:21]} 20. Qxd7 {[%clk 0:02:09]}  Rxd7 {[%clk 0:02:22]} 21. Rad1 {[%clk 0:02:01]}  Nc6 {[%clk 0:02:20]} 22. Rd2 {[%clk 0:01:49]}  Be6 {[%clk 0:02:19]} 23. b3 {[%clk 0:01:46]}  Rc7 {[%clk 0:02:14]} 24. Red1 {[%clk 0:01:41]}  Ne5 {[%clk 0:02:07]} 25. Nd5 {[%clk 0:01:23]}  Bxd5 {[%clk 0:02:07]} 26. Bxd5 {[%clk 0:01:24]}  f6 {[%clk 0:02:04]} 27. f4 {[%clk 0:01:20]}  Ng4 {[%clk 0:02:01]} 28. Bf3 {[%clk 0:01:19]}  Ne3 {[%clk 0:02:01]} 29. Rc1 {[%clk 0:01:19]}  Rcc8 {[%clk 0:01:52]} 30. Rc3 {[%clk 0:01:14]}  Nf5 {[%clk 0:01:52]} 31. Kg2 {[%clk 0:01:14]}  Rh7 {[%clk 0:01:49]} 32. e4 {[%clk 0:01:07]}  Ng7 {[%clk 0:01:47]} 33. Kf2 {[%clk 0:01:00]}  Rh2+ {[%clk 0:01:37]} 34. Ke3 {[%clk 0:01:00]}  Rxd2 {[%clk 0:01:34]} 35. Kxd2 {[%clk 0:01:00]}  Rh8 {[%clk 0:01:34]} 36. Re3 {[%clk 0:00:50]}  Rh3 {[%clk 0:01:24]} 37. Bg4 {[%clk 0:00:42]}  Rh2+ {[%clk 0:01:15]} 38. Re2 {[%clk 0:00:43]}  Rxe2+ {[%clk 0:01:16]} 39. Kxe2 {[%clk 0:00:44]}  Kc7 {[%clk 0:01:13]} 40. Ke3 {[%clk 0:00:43]}  e5 {[%clk 0:01:13]} 41. f5 {[%clk 0:00:27]}  g5 {[%clk 0:01:08]} 42. Be2 {[%clk 0:00:26]}  Kc6 {[%clk 0:01:02]} 43. b4 {[%clk 0:00:26]}  Ne8 {[%clk 0:01:02]} 44. Kf3 {[%clk 0:00:25]}  b6 {[%clk 0:00:51]} 45. Kg4 {[%clk 0:00:25]}  Ng7 {[%clk 0:00:51]} 46. a3 {[%clk 0:00:24]}  a5 {[%clk 0:00:50]} 47. Bd1 {[%clk 0:00:18]}  axb4 {[%clk 0:00:47]} 48. axb4 {[%clk 0:00:19]}  b5 {[%clk 0:00:38]} 49. Be2 {[%clk 0:00:19]}  bxc4 {[%clk 0:00:37]} 50. Bxc4 {[%clk 0:00:20]}  Kb6 {[%clk 0:00:36]} 51. Kf3 {[%clk 0:00:20]}  Ne8 {[%clk 0:00:32]} 52. Bf7 {[%clk 0:00:17]}  Nc7 {[%clk 0:00:25]} 53. Kg4 {[%clk 0:00:18]}  Na6 {[%clk 0:00:19]} 54. Kh5 {[%clk 0:00:15]}  Kb5 {[%clk 0:00:19]} 55. Kg6 {[%clk 0:00:15]}  Kxb4 {[%clk 0:00:20]} 56. Kxf6 {[%clk 0:00:15]}  Nc5 {[%clk 0:00:21]} 57. Bd5 {[%clk 0:00:14]}  g4 {[%clk 0:00:18]} 58. Ke7 {[%clk 0:00:13]}  Kc3 {[%clk 0:00:17]} 59. f6 {[%clk 0:00:12]}  Kd4 {[%clk 0:00:17]} 60. f7 {[%clk 0:00:13]}  Ke3 {[%clk 0:00:18]} 61. f8=Q {[%clk 0:00:13]} 1-0


[Site "https://www.chess.com"]

[Event "Titled Tuesday Blitz February 21 Early 2023"]
[White "Rottenwohrer Suarez, Juan"]
[Black "TheKnightOfBosnia"]
[WhiteFideId "32068182"]
[WhiteElo "2265"]
[BlackElo "2616"]
[Result "1-0"]
[Round "06"]
[TimeControl "180+2"]
[Date "2023.02.21"]
[WhiteClock "0:00:07"]
[BlackClock "0:00:18"]

1. Nf3 {[%clk 0:02:55]}  Nf6 {[%clk 0:02:59]} 2. g3 {[%clk 0:02:55]}  b6 {[%clk 0:02:59]} 3. Bg2 {[%clk 0:02:56]}  Bb7 {[%clk 0:03:00]} 4. O-O {[%clk 0:02:57]}  g6 {[%clk 0:03:00]} 5. c4 {[%clk 0:02:57]}  Bg7 {[%clk 0:03:01]} 6. d4 {[%clk 0:02:58]}  O-O {[%clk 0:03:01]} 7. d5 {[%clk 0:02:58]}  e6 {[%clk 0:02:59]} 8. Nc3 {[%clk 0:02:55]}  a5 {[%clk 0:02:58]} 9. e4 {[%clk 0:02:53]}  d6 {[%clk 0:02:56]} 10. dxe6 {[%clk 0:02:45]}  fxe6 {[%clk 0:02:57]} 11. e5 {[%clk 0:02:46]}  dxe5 {[%clk 0:02:57]} 12. Nxe5 {[%clk 0:02:45]}  Bxg2 {[%clk 0:02:56]} 13. Kxg2 {[%clk 0:02:46]}  Qd6 {[%clk 0:02:51]} 14. Qe2 {[%clk 0:02:31]}  Nc6 {[%clk 0:02:47]} 15. Nxc6 {[%clk 0:02:27]}  Qxc6+ {[%clk 0:02:47]} 16. Kg1 {[%clk 0:02:28]}  Rae8 {[%clk 0:02:42]} 17. Bg5 {[%clk 0:02:14]}  Nd7 {[%clk 0:02:35]} 18. Qe4 {[%clk 0:01:38]}  Qxe4 {[%clk 0:02:28]} 19. Nxe4 {[%clk 0:01:39]}  Bxb2 {[%clk 0:02:28]} 20. Rab1 {[%clk 0:01:39]}  Bd4 {[%clk 0:02:21]} 21. Be3 {[%clk 0:01:12]}  Bxe3 {[%clk 0:02:10]} 22. fxe3 {[%clk 0:01:12]}  Rxf1+ {[%clk 0:02:01]} 23. Kxf1 {[%clk 0:01:11]}  Kf7 {[%clk 0:01:47]} 24. Ke2 {[%clk 0:00:45]}  Ke7 {[%clk 0:01:46]} 25. Rb5 {[%clk 0:00:43]}  Rf8 {[%clk 0:01:40]} 26. Rb1 {[%clk 0:00:36]}  Rf5 {[%clk 0:01:34]} 27. Rc1 {[%clk 0:00:35]}  Re5 {[%clk 0:01:29]} 28. Kf3 {[%clk 0:00:35]}  Nc5 {[%clk 0:01:28]} 29. Nd2 {[%clk 0:00:24]}  Rf5+ {[%clk 0:01:28]} 30. Ke2 {[%clk 0:00:24]}  Rf2+ {[%clk 0:01:28]} 31. Kxf2 {[%clk 0:00:14]}  Nd3+ {[%clk 0:01:28]} 32. Kf3 {[%clk 0:00:13]}  Nxc1 {[%clk 0:01:28]} 33. a3 {[%clk 0:00:14]}  Nd3 {[%clk 0:01:27]} 34. Ke4 {[%clk 0:00:12]}  Nc5+ {[%clk 0:01:26]} 35. Ke5 {[%clk 0:00:11]}  Nd7+ {[%clk 0:01:26]} 36. Kd4 {[%clk 0:00:11]}  Nf6 {[%clk 0:01:16]} 37. h3 {[%clk 0:00:09]}  Kd6 {[%clk 0:01:14]} 38. Nf3 {[%clk 0:00:06]}  Nd7 {[%clk 0:01:11]} 39. g4 {[%clk 0:00:05]}  e5+ {[%clk 0:01:10]} 40. Kc3 {[%clk 0:00:04]}  Nf6 {[%clk 0:01:06]} 41. Ng5 {[%clk 0:00:04]}  Ke7 {[%clk 0:00:55]} 42. Kd3 {[%clk 0:00:04]}  c6 {[%clk 0:00:54]} 43. e4 {[%clk 0:00:04]}  h6 {[%clk 0:00:49]} 44. Nf3 {[%clk 0:00:05]}  Nd7 {[%clk 0:00:47]} 45. Nh4 {[%clk 0:00:05]}  Kf6 {[%clk 0:00:46]} 46. Ke3 {[%clk 0:00:05]}  b5 {[%clk 0:00:42]} 47. cxb5 {[%clk 0:00:05]}  cxb5 {[%clk 0:00:43]} 48. Nf3 {[%clk 0:00:06]}  Nb6 {[%clk 0:00:40]} 49. Kd3 {[%clk 0:00:05]}  Ke6 {[%clk 0:00:36]} 50. Kc3 {[%clk 0:00:04]}  Nd7 {[%clk 0:00:30]} 51. Nd2 {[%clk 0:00:04]}  Nf6 {[%clk 0:00:28]} 52. Kb3 {[%clk 0:00:03]}  h5 {[%clk 0:00:26]} 53. gxh5 {[%clk 0:00:02]}  gxh5 {[%clk 0:00:27]} 54. a4 {[%clk 0:00:03]}  b4 {[%clk 0:00:26]} 55. Kc4 {[%clk 0:00:04]}  h4 {[%clk 0:00:15]} 56. Kb5 {[%clk 0:00:04]}  Nxe4 {[%clk 0:00:12]} 57. Nxe4 {[%clk 0:00:04]}  b3 {[%clk 0:00:13]} 58. Nc5+ {[%clk 0:00:04]}  Kd5 {[%clk 0:00:13]} 59. Nxb3 {[%clk 0:00:05]}  e4 {[%clk 0:00:13]} 60. Kxa5 {[%clk 0:00:05]}  e3 {[%clk 0:00:12]} 61. Nc1 {[%clk 0:00:05]}  Kc4 {[%clk 0:00:11]} 62. Ne2 {[%clk 0:00:05]}  Kd3 {[%clk 0:00:12]} 63. Nf4+ {[%clk 0:00:04]}  Ke4 {[%clk 0:00:12]} 64. Ne2 {[%clk 0:00:05]}  Kf3 {[%clk 0:00:13]} 65. Nc3 {[%clk 0:00:04]}  e2 {[%clk 0:00:13]} 66. Nxe2 {[%clk 0:00:03]}  Kxe2 {[%clk 0:00:14]} 67. Kb5 {[%clk 0:00:03]}  Kf3 {[%clk 0:00:14]} 68. a5 {[%clk 0:00:03]}  Kg3 {[%clk 0:00:15]} 69. a6 {[%clk 0:00:04]}  Kxh3 {[%clk 0:00:15]} 70. a7 {[%clk 0:00:05]}  Kh2 {[%clk 0:00:15]} 71. a8=Q {[%clk 0:00:06]}  h3 {[%clk 0:00:16]} 72. Qa2+ {[%clk 0:00:03]}  Kg1 {[%clk 0:00:16]} 73. Qb1+ {[%clk 0:00:03]}  Kg2 {[%clk 0:00:16]} 74. Qc2+ {[%clk 0:00:04]}  Kg1 {[%clk 0:00:17]} 75. Qd1+ {[%clk 0:00:05]}  Kg2 {[%clk 0:00:18]} 76. Qe2+ {[%clk 0:00:05]}  Kg1 {[%clk 0:00:18]} 77. Qe3+ {[%clk 0:00:04]}  Kg2 {[%clk 0:00:18]} 78. Qg5+ {[%clk 0:00:05]}  Kf1 {[%clk 0:00:16]} 79. Qg3 {[%clk 0:00:04]}  Ke2 {[%clk 0:00:15]} 80. Qxh3 {[%clk 0:00:04]}  Kf2 {[%clk 0:00:15]} 81. Kc4 {[%clk 0:00:04]}  Ke2 {[%clk 0:00:16]} 82. Qd3+ {[%clk 0:00:03]}  Ke1 {[%clk 0:00:17]} 83. Qc2 {[%clk 0:00:03]}  Kf1 {[%clk 0:00:18]} 84. Kd3 {[%clk 0:00:04]}  Kg1 {[%clk 0:00:18]} 85. Ke3 {[%clk 0:00:05]}  Kh1 {[%clk 0:00:18]} 86. Kf3 {[%clk 0:00:06]}  Kg1 {[%clk 0:00:18]} 87. Qg2# {[%clk 0:00:07]} 1-0


[Site "https://www.chess.com"]

[Event "Titled Tuesday Blitz February 21 Early 2023"]
[White "Wahedi, Ahmad Siar"]
[Black "Goroshkov, Maksym"]
[WhiteFideId "4651260"]
[BlackFideId "14142716"]
[WhiteElo "2274"]
[BlackElo "2287"]
[Result "0-1"]
[Round "06"]
[TimeControl "180+2"]
[Date "2023.02.21"]
[WhiteClock "0:00:37"]
[BlackClock "0:01:19"]

1. e4 {[%clk 0:03:00]}  e5 {[%clk 0:03:00]} 2. Nf3 {[%clk 0:03:00]}  d6 {[%clk 0:03:01]} 3. d4 {[%clk 0:02:58]}  Bg4 {[%clk 0:03:01]} 4. dxe5 {[%clk 0:02:57]}  Nd7 {[%clk 0:03:02]} 5. exd6 {[%clk 0:02:56]}  Bxd6 {[%clk 0:03:03]} 6. Be2 {[%clk 0:02:56]}  Ngf6 {[%clk 0:03:03]} 7. Nc3 {[%clk 0:02:56]}  Qe7 {[%clk 0:03:04]} 8. Bg5 {[%clk 0:02:52]}  O-O-O {[%clk 0:03:04]} 9. Qd2 {[%clk 0:02:49]}  Bxf3 {[%clk 0:03:02]} 10. Bxf3 {[%clk 0:02:47]}  Ne5 {[%clk 0:03:03]} 11. Qe2 {[%clk 0:02:43]}  h6 {[%clk 0:02:54]} 12. Bh4 {[%clk 0:02:42]}  g5 {[%clk 0:02:53]} 13. Bg3 {[%clk 0:02:42]}  Kb8 {[%clk 0:02:39]} 14. h3 {[%clk 0:02:36]}  Nxf3+ {[%clk 0:02:37]} 15. gxf3 {[%clk 0:02:35]}  Nh5 {[%clk 0:02:35]} 16. O-O-O {[%clk 0:02:32]}  Bxg3 {[%clk 0:02:33]} 17. fxg3 {[%clk 0:02:28]}  Nxg3 {[%clk 0:02:33]} 18. Qb5 {[%clk 0:02:18]}  Nxh1 {[%clk 0:02:31]} 19. Rxh1 {[%clk 0:02:19]}  c6 {[%clk 0:02:29]} 20. Qe2 {[%clk 0:02:06]}  Qe5 {[%clk 0:02:25]} 21. a3 {[%clk 0:02:04]}  f5 {[%clk 0:02:15]} 22. Kb1 {[%clk 0:02:03]}  Rhe8 {[%clk 0:02:14]} 23. h4 {[%clk 0:02:03]}  g4 {[%clk 0:02:10]} 24. fxg4 {[%clk 0:02:03]}  fxe4 {[%clk 0:02:10]} 25. Rg1 {[%clk 0:01:59]}  e3 {[%clk 0:02:10]} 26. g5 {[%clk 0:01:59]}  hxg5 {[%clk 0:02:10]} 27. hxg5 {[%clk 0:01:59]}  Rd2 {[%clk 0:02:11]} 28. Qg4 {[%clk 0:01:57]}  e2 {[%clk 0:02:09]} 29. Re1 {[%clk 0:01:57]}  Rd4 {[%clk 0:01:59]} 30. Qg2 {[%clk 0:01:51]}  Rd2 {[%clk 0:01:35]} 31. g6 {[%clk 0:01:47]}  Qf5 {[%clk 0:01:35]} 32. Ka1 {[%clk 0:00:46]}  Qxc2 {[%clk 0:01:30]} 33. Qg3+ {[%clk 0:00:41]}  Ka8 {[%clk 0:01:28]} 34. Na4 {[%clk 0:00:39]}  Rd1+ {[%clk 0:01:20]} 35. Ka2 {[%clk 0:00:39]}  Qc4+ {[%clk 0:01:19]} 36. b3 {[%clk 0:00:38]}  Qc2+ {[%clk 0:01:19]} 37. Nb2 {[%clk 0:00:37]}  Qb1# {[%clk 0:01:19]} 0-1


[Site "https://www.chess.com"]

[Event "Titled Tuesday Blitz February 21 Early 2023"]
[White "Spitzl, Vinzent"]
[Black "Ismagilov, Damir"]
[WhiteFideId "12901253"]
[BlackFideId "34199982"]
[WhiteElo "2365"]
[BlackElo "2156"]
[Result "0-1"]
[Round "06"]
[TimeControl "180+2"]
[Date "2023.02.21"]
[WhiteClock "0:00:47"]
[BlackClock "0:01:14"]

1. e4 {[%clk 0:03:00]}  e6 {[%clk 0:02:59]} 2. d4 {[%clk 0:03:00]}  d5 {[%clk 0:03:00]} 3. Nd2 {[%clk 0:02:59]}  dxe4 {[%clk 0:03:00]} 4. Nxe4 {[%clk 0:02:59]}  Nd7 {[%clk 0:03:00]} 5. Bd3 {[%clk 0:02:58]}  Ngf6 {[%clk 0:03:01]} 6. Nxf6+ {[%clk 0:02:54]}  Nxf6 {[%clk 0:03:00]} 7. Nf3 {[%clk 0:02:54]}  c5 {[%clk 0:02:59]} 8. dxc5 {[%clk 0:02:50]}  Bxc5 {[%clk 0:03:00]} 9. Bb5+ {[%clk 0:02:48]}  Bd7 {[%clk 0:02:59]} 10. Bxd7+ {[%clk 0:02:48]}  Qxd7 {[%clk 0:03:00]} 11. Qxd7+ {[%clk 0:02:48]}  Kxd7 {[%clk 0:02:59]} 12. O-O {[%clk 0:02:48]}  Ke7 {[%clk 0:02:58]} 13. a3 {[%clk 0:02:44]}  Rac8 {[%clk 0:02:57]} 14. Rd1 {[%clk 0:02:37]}  Rhd8 {[%clk 0:02:43]} 15. Rxd8 {[%clk 0:02:31]}  Rxd8 {[%clk 0:02:43]} 16. Be3 {[%clk 0:02:31]}  Bxe3 {[%clk 0:02:40]} 17. fxe3 {[%clk 0:02:32]}  Rc8 {[%clk 0:02:22]} 18. Rc1 {[%clk 0:02:13]}  Ne4 {[%clk 0:02:18]} 19. Kf1 {[%clk 0:02:12]}  f6 {[%clk 0:02:17]} 20. Ke2 {[%clk 0:02:10]}  e5 {[%clk 0:02:17]} 21. Nd2 {[%clk 0:02:06]}  Nd6 {[%clk 0:02:12]} 22. c4 {[%clk 0:02:01]}  b6 {[%clk 0:02:08]} 23. b4 {[%clk 0:01:54]}  Ke6 {[%clk 0:02:08]} 24. Kd3 {[%clk 0:01:53]}  f5 {[%clk 0:02:04]} 25. e4 {[%clk 0:01:44]}  g6 {[%clk 0:01:43]} 26. a4 {[%clk 0:01:20]}  a5 {[%clk 0:01:35]} 27. c5 {[%clk 0:01:07]}  axb4 {[%clk 0:01:27]} 28. exf5+ {[%clk 0:01:03]}  gxf5 {[%clk 0:01:25]} 29. Nb3 {[%clk 0:00:52]}  bxc5 {[%clk 0:01:18]} 30. Nxc5+ {[%clk 0:00:52]}  Kd5 {[%clk 0:01:18]} 31. Nb3 {[%clk 0:00:50]}  e4+ {[%clk 0:01:15]} 32. Ke3 {[%clk 0:00:50]}  Rxc1 {[%clk 0:01:15]} 33. Nxc1 {[%clk 0:00:50]}  Kc4 {[%clk 0:01:15]} 34. a5 {[%clk 0:00:47]}  b3 {[%clk 0:01:14]} 0-1


[Site "https://www.chess.com"]